fUSD/lending_fUSD_20260515
["ID","MTS","AMOUNT","RATE_DAILY","PERIOD"]
[422301922,1778800247000,-1001.9,0.00029414,2]
[422301924,1778800247000,-319.0,0.00029445,2]
[422301926,1778800247000,-628.0,0.00029452,7]
[422301927,1778800247000,-1001.9,0.00029471,2]
[422301929,1778800247000,-8248.76,0.00029581,7]
[422301923,1778800247000,-1001.9,0.00029443,2]
[422301925,1778800247000,-2799.0,0.00029445,2]
[422301930,1778800247000,-150.0,0.00029601,2]
[422301928,1778800247000,-1001.9,0.000295,2]
[422301870,1778800247000,-628.0,0.00027767,5]
[422301917,1778800247000,-1598.58560445,0.00029224,30]
[422301902,1778800247000,-156.58,0.00028493,2]
[422301912,1778800247000,-1083.466321,0.00028767,7]
[422301899,1778800247000,-628.0,0.00028329,6]
[422301872,1778800247000,-2000.0,0.000278,7]
[422301873,1778800247000,-2000.0,0.000278,7]
[422301905,1778800247000,-500.0,0.00028767,120]
[422301874,1778800247000,-547.0,0.000278,7]
[422301877,1778800247000,-245.0,0.000278,7]
[422301880,1778800247000,-754.0,0.00028125,10]
[422301878,1778800247000,-160.0,0.00028,10]
[422301879,1778800247000,-320.76,0.00028,30]
[422301875,1778800247000,-150.0,0.000278,7]
[422301876,1778800247000,-150.0,0.000278,7]
[422301882,1778800247000,-811.0,0.00028125,10]
[422301884,1778800247000,-500.0,0.00028257,16]
[422301885,1778800247000,-2458.5,0.00028267,2]
[422301883,1778800247000,-150.0,0.00028192,2]
[422301881,1778800247000,-2166.0,0.00028125,10]
[422301895,1778800247000,-3000.0,0.00028311,30]
[422301897,1778800247000,-3000.0,0.00028311,30]
[422301891,1778800247000,-217.0,0.00028311,30]
[422301898,1778800247000,-1598.58560445,0.00028311,30]
[422301896,1778800247000,-3000.0,0.00028311,30]
[422301887,1778800247000,-250.0,0.00028311,30]
[422301893,1778800247000,-3000.0,0.00028311,30]
[422301931,1778800247000,-3122.72,0.000297,7]
[422301889,1778800247000,-250.0,0.00028311,30]
[422301894,1778800247000,-3000.0,0.00028311,30]
[422301888,1778800247000,-250.0,0.00028311,30]
[422301886,1778800247000,-375.27368589,0.00028297,120]
[422301892,1778800247000,-3000.0,0.00028311,30]
[422301890,1778800247000,-250.0,0.00028311,30]
[422301949,1778800248000,-500.0,0.00029977,19]
[422301948,1778800248000,-4799.37329779,0.000299,2]
[422301952,1778800248000,-600.0,0.0003,120]
[422301950,1778800248000,-240.75254646,0.0002999,2]
[422301954,1778800248000,-186.36584172,0.0003,120]
[422301953,1778800248000,-366.82991459,0.0003,30]
[422301955,1778800248000,-108782.6053155,0.0003,5]
[422301956,1778800248000,-195.78196178,0.0003,120]
[422301947,1778800248000,-163.0,0.0002981,3]
[422301957,1778800248000,-10000.0,0.0003,10]
[422301951,1778800248000,-300.0,0.00029999,10]
[422301946,1778800248000,-6052.0,0.00029765,2]
[422301938,1778800248000,-150.0,0.00029765,2]
[422301945,1778800248000,-3630.0,0.00029765,2]
[422301943,1778800248000,-1270.0,0.00029765,2]
[422301942,1778800248000,-926.0,0.00029765,2]
[422301941,1778800248000,-1354.0,0.00029765,2]
[422301940,1778800248000,-625.0,0.00029765,2]
[422301939,1778800248000,-3542.0,0.00029765,2]
[422301934,1778800248000,-150.0,0.00029765,2]
[422301936,1778800248000,-150.0,0.00029765,2]
[422301933,1778800248000,-150.0,0.00029765,2]
[422301932,1778800248000,-1106.10975102,0.00029705,3]
[422301961,1778800248000,-11082.78475601,0.0003,10]
[422301944,1778800248000,-1223.0,0.00029765,2]
[422301959,1778800248000,-20170.11975411,0.0003,2]
[422301986,1778800248000,-628.0,0.00030014,7]
[422301960,1778800248000,-87877.0,0.0003,2]
[422302001,1778800248000,-387926.83267755,0.0003013,7]
[422301998,1778800248000,-204.78623452,0.0003013,2]
[422302000,1778800248000,-300.0,0.0003013,30]
[422301999,1778800248000,-265.50506702,0.0003013,120]
[422301997,1778800248000,-695.31243451,0.0003013,120]
[422301995,1778800248000,-344.37336874,0.0003013,120]
[422301992,1778800248000,-475.57913799,0.0003013,120]
[422301990,1778800248000,-2287.0,0.000301,120]
[422301996,1778800248000,-14062.18211803,0.0003013,2]
[422301993,1778800248000,-1090.01257389,0.0003013,2]
[422301958,1778800248000,-421.48349382,0.0003,120]
[422301984,1778800248000,-439.0,0.00030004,120]
[422301988,1778800248000,-345.08,0.00030082,120]
[422301980,1778800248000,-208.3309892,0.0003,10]
[422301977,1778800248000,-167.59272338,0.0003,120]
[422301974,1778800248000,-311.26101948,0.0003,2]
[422301972,1778800248000,-165.48517158,0.0003,2]
[422301970,1778800248000,-169.66107701,0.0003,120]
[422301966,1778800248000,-765.55826399,0.0003,120]
[422301965,1778800248000,-500.0,0.0003,2]
[422301967,1778800248000,-524.89164544,0.0003,30]
[422301964,1778800248000,-166.0,0.0003,120]
[422301963,1778800248000,-1845.21977072,0.0003,2]
[422301962,1778800248000,-324.24521552,0.0003,2]
[422301982,1778800248000,-200.0,0.0003,2]
[422302003,1778800249000,-4439.43418723,0.0003013,7]
[422302004,1778800249000,-670.12,0.00026142,7]
[422302002,1778800249000,-670.12,0.00026113,2]
[422302006,1778800249000,-3973.91400068,0.00013303,2]
[422302007,1778800249000,-369.89652397,0.00013835,2]
[422302008,1778800249000,-684.78,0.00013835,2]
[422302005,1778800249000,-232.53302674,0.0003013,7]
[422302029,1778800256000,-1500.17,0.00024802,7]
[422302027,1778800256000,-1500.17,0.00024658,2]
[422302026,1778800256000,-150.0,0.00024324,2]
[422302025,1778800256000,-938.913,0.00023765,2]
[422302024,1778800256000,-150.0,0.00023671,2]
[422302023,1778800256000,-150.0,0.00021918,2]
[422302018,1778800256000,-318.09,0.000198,7]
[422302022,1778800256000,-2000.0,0.00021724,2]
[422302021,1778800256000,-2000.0,0.00021724,2]
[422302019,1778800256000,-2000.0,0.00021724,2]
[422302020,1778800256000,-2000.0,0.00021724,2]
[422302015,1778800256000,-1515.66992504,0.000149,2]
[422302016,1778800256000,-3973.91400068,0.000149,2]
[422302014,1778800256000,-290.0373289,0.000149,2]
[422302013,1778800256000,-9806.95573028,0.000149,2]
[422302012,1778800256000,-1780.38735098,0.000149,2]
[422302011,1778800256000,-283.27,0.0001485,2]
[422302010,1778800256000,-3973.91400068,0.00014368,2]
[422302009,1778800256000,-2919.23747671,0.00013835,2]
[422302031,1778800256000,-265.07,0.000249,14]
[422302017,1778800256000,-214.95940296,0.00016,3]
[422302030,1778800256000,-2932.21,0.00024802,7]
[422302028,1778800256000,-2932.21,0.00024658,2]
[422302032,1778800256000,-1500.17,0.00024946,2]
[422302066,1778800256000,-1000.11,0.00026113,2]
[422302064,1778800256000,-1675.06,0.00026113,2]
[422302059,1778800256000,-1000.11,0.00026084,2]
[422302057,1778800256000,-1675.06,0.00026084,2]
[422302050,1778800256000,-1675.06,0.00026055,7]
[422302052,1778800256000,-1000.11,0.00026055,7]
[422302054,1778800256000,-1954.81,0.00026055,7]
[422302042,1778800256000,-1500.17,0.00025667,7]
[422302048,1778800256000,-1954.81,0.00026027,2]
[422302046,1778800256000,-1000.11,0.00026027,2]
[422302045,1778800256000,-1675.06,0.00026027,2]
[422302033,1778800256000,-2932.21,0.00024946,2]
[422302044,1778800256000,-1500.17,0.00025811,2]
[422302043,1778800256000,-953.07,0.00025786,2]
[422302036,1778800256000,-1500.17,0.00025234,7]
[422302034,1778800256000,-1500.17,0.0002509,2]
[422302037,1778800256000,-2932.21,0.00025234,7]
[422302035,1778800256000,-2932.21,0.0002509,2]
[422302040,1778800256000,-1500.17,0.00025523,2]
[422302039,1778800256000,-2932.21,0.00025378,7]
[422302038,1778800256000,-1500.17,0.00025378,7]
[422302041,1778800256000,-176.2988,0.00025565,2]
[422302061,1778800256000,-1954.81,0.00026084,2]
[422302105,1778800257000,-670.12,0.00026286,2]
[422302100,1778800257000,-670.12,0.00026257,30]
[422302102,1778800257000,-1000.11,0.00026257,2]
[422302099,1778800257000,-1954.81,0.00026229,7]
[422302104,1778800257000,-150.0,0.0002627,2]
[422302103,1778800257000,-1954.81,0.00026257,2]
[422302106,1778800257000,-1675.06,0.00026286,2]
[422302111,1778800257000,-1675.06,0.00026315,7]
[422302107,1778800257000,-1000.11,0.00026286,2]
[422302112,1778800257000,-1954.81,0.00026315,7]
[422302101,1778800257000,-1675.06,0.00026257,2]
[422302110,1778800257000,-1000.11,0.00026315,7]
[422302115,1778800257000,-1000.11,0.00026344,7]
[422302116,1778800257000,-1954.81,0.00026344,7]
[422302108,1778800257000,-1954.81,0.00026286,2]
[422302098,1778800257000,-1000.11,0.00026229,7]
[422302088,1778800257000,-1954.81,0.00026171,7]
[422302097,1778800257000,-1675.06,0.00026229,7]
[422302071,1778800257000,-152.0,0.00026123,7]
[422302069,1778800257000,-1954.81,0.00026113,2]
[422302073,1778800257000,-152.0,0.00026123,7]
[422302075,1778800257000,-1675.06,0.00026142,7]
[422302081,1778800257000,-670.12,0.00026171,30]
[422302077,1778800257000,-1000.11,0.00026142,7]
[422302079,1778800257000,-1954.81,0.00026142,7]
[422302093,1778800257000,-1675.06,0.000262,2]
[422302094,1778800257000,-1000.11,0.000262,2]
[422302084,1778800257000,-1675.06,0.00026171,7]
[422302086,1778800257000,-1000.11,0.00026171,7]
[422302090,1778800257000,-152.0,0.00026175,7]
[422302113,1778800257000,-670.12,0.00026344,30]
[422302092,1778800257000,-670.12,0.000262,2]
[422302095,1778800257000,-1954.81,0.000262,2]
[422302096,1778800257000,-670.12,0.00026229,7]
[422302117,1778800257000,-670.12,0.00026373,2]
[422302109,1778800257000,-670.12,0.00026315,7]
[422302149,1778800257000,-930.0,0.00026765,2]
[422302138,1778800257000,-1000.11,0.00026517,7]
[422302137,1778800257000,-670.12,0.00026517,30]
[422302139,1778800257000,-1675.06,0.00026517,7]
[422302142,1778800257000,-1000.11,0.00026546,2]
[422302146,1778800257000,-1000.3,0.00026575,7]
[422302145,1778800257000,-670.13,0.00026575,7]
[422302144,1778800257000,-1954.81,0.00026546,2]
[422302143,1778800257000,-1675.06,0.00026546,2]
[422302147,1778800257000,-1675.12,0.00026575,7]
[422302118,1778800257000,-1000.11,0.00026373,2]
[422302153,1778800257000,-92459.89589692,0.0003013,7]
[422302150,1778800257000,-4329.03,0.00027397,10]
[422302152,1778800257000,-930.0,0.00029765,2]
[422302151,1778800257000,-150.0,0.00028372,2]
[422302148,1778800257000,-1954.82,0.00026575,7]
[422302141,1778800257000,-670.12,0.00026546,2]
[422302135,1778800257000,-1675.06,0.00026488,7]
[422302114,1778800257000,-1675.06,0.00026344,7]
[422302136,1778800257000,-1954.81,0.00026488,7]
[422302120,1778800257000,-1954.81,0.00026373,2]
[422302119,1778800257000,-1675.06,0.00026373,2]
[422302121,1778800257000,-670.12,0.00026402,7]
[422302123,1778800257000,-1675.06,0.00026402,7]
[422302126,1778800257000,-1000.11,0.00026431,2]
[422302124,1778800257000,-1954.81,0.00026402,7]
[422302125,1778800257000,-670.12,0.00026431,30]
[422302122,1778800257000,-1000.11,0.00026402,7]
[422302128,1778800257000,-1954.81,0.00026431,2]
[422302129,1778800257000,-670.12,0.00026459,2]
[422302131,1778800257000,-1675.06,0.00026459,2]
[422302130,1778800257000,-1000.11,0.00026459,2]
[422302132,1778800257000,-1954.81,0.00026459,2]
[422302134,1778800257000,-1000.11,0.00026488,7]
[422302133,1778800257000,-670.12,0.00026488,7]
[422302127,1778800257000,-1675.06,0.00026431,2]
[422302140,1778800257000,-1954.81,0.00026517,7]
[422302154,1778800263000,2500.0,0.00025595,120]
[422302157,1778800263000,2500.0,0.00025797,120]
[422302156,1778800263000,2500.0,0.00025797,120]
[422302155,1778800263000,2500.0,0.00025797,120]
[422302158,1778800286000,-284.12675045,0.00014498,2]
[422302159,1778800302000,-262.24685327,0.00015223,2]
[422302160,1778800381000,300.0,0.00027397,120]
[422302161,1778800436000,214.32,0.00015,120]
[422302164,1778800570000,181.59,0.00021,120]
[422302163,1778800570000,239.67,0.00023,120]
[422302162,1778800570000,301.63,0.000271,120]
[422302165,1778800591000,151.0,0.000223,120]
[422302166,1778800628000,192.89,0.00015,120]
[422302167,1778800820000,173.6,0.00015,120]
[422302168,1778800876000,-198.0945,9.653e-05,2]
[422302169,1778800891000,151.0,0.000223,120]
[422302171,1778800949000,152.141,0.000273,120]
[422302172,1778801016000,156.24,0.00015,120]
[422302173,1778801042000,200.0,0.00027397,120]
[422302176,1778801077000,500.0,0.000273,120]
[422302175,1778801077000,500.0,0.000273,120]
[422302174,1778801077000,500.0,0.000273,120]
[422302179,1778801137000,500.0,0.00027026,120]
[422302178,1778801137000,500.0,0.00027026,120]
[422302177,1778801137000,500.0,0.00027026,120]
[422302180,1778801139000,500.0,0.00026752,120]
[422302181,1778801139000,500.0,0.00026752,120]
[422302182,1778801206000,150.0,0.00015,120]
[422302183,1778801261000,192.51175398,0.00025467,120]
[422302184,1778801262000,431.47835527,0.00026091,120]
[422302185,1778801263000,431.47835527,0.00026161,120]
[422302186,1778801398000,150.0,0.00015,120]
[422302187,1778801412000,828.0,0.00026691,120]
[422302196,1778801431000,-250.0,9.744e-05,2]
[422302197,1778801431000,-234.5,9.798e-05,2]
[422302198,1778801432000,-380.0,9.798e-05,2]
[422302200,1778801432000,-310.77208677,9.819e-05,2]
[422302201,1778801432000,-161.48105996,9.819e-05,2]
[422302199,1778801432000,-858.358,9.798e-05,2]
[422302202,1778801432000,-161.48105996,9.859e-05,2]
[422302204,1778801432000,-150.0,9.897e-05,2]
[422302206,1778801432000,-5000.0,9.898e-05,2]
[422302208,1778801432000,-161.48105996,9.898e-05,2]
[422302203,1778801432000,-1200.0,9.897e-05,2]
[422302207,1778801432000,-2500.0,9.898e-05,2]
[422302210,1778801432000,-500.0,9.997e-05,2]
[422302211,1778801432000,-154.5317936,9.997e-05,2]
[422302216,1778801432000,-494411.23593233,9.998e-05,2]
[422302209,1778801432000,-500.0,9.997e-05,2]
[422302212,1778801432000,-500.0,9.997e-05,2]
[422302213,1778801432000,-253.80821952,9.997e-05,2]
[422302214,1778801432000,-500.0,9.997e-05,2]
[422302215,1778801432000,-231.79308763,9.997e-05,2]
[422302205,1778801432000,-77775.2936,9.898e-05,2]
[422302220,1778801433000,160.0,0.00026822,120]
[422302223,1778801438000,-62255.72717259,9.998e-05,2]
[422302224,1778801438000,-456.52137762,9.998e-05,2]
[422302270,1778801440000,-599.22993547,9.998e-05,2]
[422302279,1778801440000,-414.4489,0.00010098,2]
[422302271,1778801440000,-1942277.28558199,9.998e-05,2]
[422302272,1778801440000,-635.49889853,9.998e-05,2]
[422302273,1778801440000,-617.73734107,9.998e-05,2]
[422302274,1778801440000,-177.80498273,9.998e-05,2]
[422302275,1778801440000,-217.34944177,0.0001,2]
[422302276,1778801440000,-163.37,0.0001,2]
[422302277,1778801440000,-394.07818401,0.0001,2]
[422302283,1778801440000,-11105.1,0.00010458,2]
[422302290,1778801440000,-200.0,0.00010776,2]
[422302282,1778801440000,-203.76,0.00010455,2]
[422302281,1778801440000,-208.3309892,0.00010315,2]
[422302288,1778801440000,-2697.53,0.00010776,2]
[422302286,1778801440000,-2000.0,0.00010776,2]
[422302287,1778801440000,-211.76,0.00010776,2]
[422302292,1778801440000,-82069.49093136,0.00010794,2]
[422302278,1778801440000,-4270.8,0.00010037,2]
[422302280,1778801440000,-58075.93,0.00010169,2]
[422302284,1778801440000,-250.0,0.00010658,2]
[422302285,1778801440000,-1852.42,0.00010776,2]
[422302319,1778801443000,-288.0462932,0.00010794,2]
[422302318,1778801443000,-214.95940296,0.00010315,2]
[422302326,1778801445000,-53559.18349997,0.00010794,2]
[422302325,1778801445000,-812.34773365,0.00010794,2]
[422302327,1778801446000,-1000.0,0.00010794,2]
[422302329,1778801587000,150.0,0.00015,120]
[422302330,1778801710000,579.0,0.00026505,120]
[422302331,1778801711000,1702.08,0.00027397,120]
[422302332,1778801734000,160.0,0.00026694,120]
[422302333,1778801777000,150.0,0.00015,120]
[422302334,1778801924000,500.0,0.00027397,120]
[422302335,1778801965000,150.0,0.00015,120]
[422302336,1778802000000,2697.53,9.551e-05,2]
[422302337,1778802009000,406.0,0.00026585,120]
[422302338,1778802010000,653.33491078,9.551e-05,2]
[422302339,1778802010000,4.06508922,9.551e-05,2]
[422302340,1778802030000,161.0,0.00026725,120]
[422302341,1778802150000,1440.88051393,9.58e-05,2]
[422302342,1778802155000,150.0,0.00015,120]
[422302343,1778802314000,284.0,0.00026606,120]
[422302344,1778802342000,150.0,0.00015,120]
[422302345,1778802529000,150.0,0.00015,120]
[422302346,1778802608000,199.0,0.00026621,120]
[422302351,1778802631000,-390.45552911,9.426e-05,2]
[422302349,1778802631000,-209.649419,9.378e-05,2]
[422302352,1778802631000,-809.54447089,9.426e-05,2]
[422302350,1778802631000,-300.0,9.426e-05,2]
[422302353,1778802631000,-300.0,9.426e-05,2]
[422302357,1778802631000,-7601.55608315,9.481e-05,2]
[422302354,1778802631000,-11105.1,9.427e-05,2]
[422302356,1778802631000,-250.0,9.48e-05,2]
[422302358,1778802631000,-1600.33,9.481e-05,2]
[422302355,1778802631000,-1852.42,9.471e-05,2]
[422302359,1778802631000,-1668.97568377,9.481e-05,2]
[422302364,1778802632000,-348572.69029584,9.481e-05,2]
[422302361,1778802632000,-1804.06328209,9.481e-05,2]
[422302360,1778802632000,-906.78256907,9.481e-05,2]
[422302363,1778802632000,-1060.14397087,9.481e-05,2]
[422302362,1778802632000,-1405.13503512,9.481e-05,2]
[422302366,1778802632000,-102655.64582686,9.481e-05,2]
[422302370,1778802632000,-150.0,9.579e-05,2]
[422302372,1778802632000,-640.66082385,9.58e-05,2]
[422302367,1778802632000,-193367.57547795,9.481e-05,2]
[422302368,1778802632000,-282.76,9.504e-05,2]
[422302369,1778802632000,-2841.94,9.563e-05,2]
[422302373,1778802632000,-27425.49368205,9.58e-05,2]
[422302365,1778802632000,-168163.32997528,9.481e-05,2]
[422302375,1778802638000,-284.14433268,9.58e-05,2]
[422302376,1778802638000,-5090.88593671,9.58e-05,2]
[422302377,1778802638000,-2145.95375894,9.58e-05,2]
[422302378,1778802638000,-2011.17962667,9.58e-05,2]
[422302379,1778802638000,-930.81830414,9.58e-05,2]
[422302380,1778802638000,-1043.35,9.58e-05,2]
[422302381,1778802638000,-344.73477009,9.58e-05,2]
[422302382,1778802638000,-684.44111521,9.58e-05,2]
[422302404,1778802640000,-7839.9962247,0.00010041,2]
[422302402,1778802640000,-214.95940296,0.00010006,2]
[422302399,1778802640000,-163.37,0.0001,2]
[422302398,1778802640000,-2251.65069118,9.998e-05,2]
[422302401,1778802640000,-208.3309892,0.00010006,2]
[422302400,1778802640000,-211.76,0.00010005,2]
[422302397,1778802640000,-3678.22055067,9.998e-05,2]
[422302390,1778802640000,-414.751446,9.58e-05,2]
[422302395,1778802640000,-1255.88,9.716e-05,2]
[422302396,1778802640000,-263.50783151,9.998e-05,2]
[422302394,1778802640000,-4270.8,9.635e-05,2]
[422302392,1778802640000,-14177.4997985,9.58e-05,2]
[422302391,1778802640000,-1441.13589123,9.58e-05,2]
[422302406,1778802640000,-497.8744251,0.00010041,2]
[422302393,1778802640000,-200.0,9.635e-05,2]
[422302405,1778802640000,-225205.401504,0.00010041,2]
[422302417,1778802640000,-185.09,0.00010471,2]
[422302410,1778802640000,-3262.81,0.00010175,2]
[422302419,1778802640000,-5000.0,0.0001049,2]
[422302418,1778802640000,-2000.0,0.00010471,2]
[422302420,1778802640000,-255.0,0.00010537,2]
[422302421,1778802640000,-117199.32554386,0.0001059,2]
[422302414,1778802640000,-250.0,0.00010369,2]
[422302416,1778802640000,-214.7,0.0001047,2]
[422302415,1778802640000,-250.0,0.00010401,2]
[422302413,1778802640000,-1680.0,0.00010368,2]
[422302408,1778802640000,-11407.7778917,0.00010041,2]
[422302407,1778802640000,-410.7833336,0.00010041,2]
[422302411,1778802640000,-166.93,0.00010295,2]
[422302412,1778802640000,-300.0,0.00010368,2]
[422302409,1778802640000,-55784.2387572,0.00010041,2]
[422302422,1778802640000,-476.17111661,0.0001059,2]
[422302403,1778802640000,-394.07818401,0.00010031,2]
[422302450,1778802643000,-7034.75631433,0.0001059,2]
[422302449,1778802643000,-3708.8320194,0.0001059,2]
[422302481,1778802716000,206.24,0.00015,120]
[422302483,1778802822000,154.46,7.22e-05,2]
[422302482,1778802822000,154.46,4.877e-05,2]
[422302484,1778802927000,496.69114854,0.00025111,120]
[422302485,1778803212000,171.0,0.00027224,120]
[422302487,1778803506000,172.0,0.00027239,120]
[422302488,1778803628000,154.46,4.843e-05,2]
[422302499,1778803832000,-300.0,9.577e-05,2]
[422302511,1778803832000,-214.95940296,9.704e-05,2]
[422302510,1778803832000,-2293.3448,9.679e-05,2]
[422302500,1778803832000,-300.0,9.577e-05,2]
[422302495,1778803832000,-1029.83923805,9.496e-05,2]
[422302494,1778803832000,-1200.0,9.495e-05,2]
[422302498,1778803832000,-201.15923283,9.496e-05,2]
[422302493,1778803832000,-300.92605614,9.46e-05,2]
[422302492,1778803832000,-101.13511213,9.425e-05,2]
[422302491,1778803832000,-526.80488787,9.425e-05,2]
[422302501,1778803832000,-150.0,9.578e-05,2]
[422302497,1778803832000,-440.8,9.496e-05,2]
[422302502,1778803832000,-99072.5658,9.579e-05,2]
[422302496,1778803832000,-2232.97076195,9.496e-05,2]
[422302507,1778803832000,-313.0427971,9.58e-05,2]
[422302503,1778803832000,-1500000.0,9.579e-05,2]
[422302518,1778803832000,-1246.48,9.779e-05,2]
[422302515,1778803832000,-35383.44856789,9.779e-05,2]
[422302514,1778803832000,-165.9581418,9.779e-05,2]
[422302517,1778803832000,-1500.36,9.779e-05,2]
[422302512,1778803832000,-208.3309892,9.704e-05,2]
[422302516,1778803832000,-400.32000501,9.779e-05,2]
[422302509,1778803832000,-2000.0,9.679e-05,2]
[422302505,1778803832000,-1134.60857358,9.58e-05,2]
[422302506,1778803832000,-769.92911676,9.58e-05,2]
[422302504,1778803832000,-575.90720478,9.58e-05,2]
[422302508,1778803832000,-2000.0,9.593e-05,2]
[422302513,1778803832000,-19942.2250272,9.779e-05,2]
[422302546,1778803838000,-171.59043307,0.00010619,2]
[422302544,1778803838000,-255.0,0.00010536,2]
[422302537,1778803838000,-1680.0,0.00010444,2]
[422302538,1778803838000,-530.65,0.00010464,2]
[422302541,1778803838000,-394.471,0.0001049,2]
[422302539,1778803838000,-92967.02992897,0.0001049,2]
[422302540,1778803838000,-14362.9556,0.0001049,2]
[422302553,1778803838000,-214.7,0.00010749,2]
[422302543,1778803838000,-420.0,0.00010535,2]
[422302549,1778803838000,-440.8,0.00010683,2]
[422302547,1778803838000,-190.01670168,0.00010637,2]
[422302551,1778803838000,-530.65,0.00010719,2]
[422302545,1778803838000,-622.48449362,0.00010619,2]
[422302558,1778803838000,-150.0,0.00010959,2]
[422302559,1778803838000,-530.65,0.00010975,2]
[422302542,1778803838000,-157.0,0.00010535,2]
[422302536,1778803838000,-250.0,0.00010368,2]
[422302525,1778803838000,-56301.350376,9.779e-05,2]
[422302534,1778803838000,-250.0,0.00010368,2]
[422302550,1778803838000,-326711.17237686,0.000107,2]
[422302520,1778803838000,-2257.08759166,9.779e-05,2]
[422302519,1778803838000,-62391.22325976,9.779e-05,2]
[422302521,1778803838000,-2038.5579929,9.779e-05,2]
[422302522,1778803838000,-80587.27370638,9.779e-05,2]
[422302528,1778803838000,-1493.6232755,9.779e-05,2]
[422302526,1778803838000,-8555.8334188,9.779e-05,2]
[422302524,1778803838000,-2494.9165664,9.779e-05,2]
[422302527,1778803838000,-41838.1790679,9.779e-05,2]
[422302531,1778803838000,-163.37,0.0001,2]
[422302523,1778803838000,-308.0875002,9.779e-05,2]
[422302532,1778803838000,-789.83098728,0.0001,2]
[422302530,1778803838000,-1145.79,9.902e-05,2]
[422302529,1778803838000,-500.0,9.862e-05,2]
[422302533,1778803838000,-530.65,0.00010209,2]
[422302535,1778803838000,-208.08566668,0.00010368,2]
[422302556,1778803838000,-1382.92832058,0.000109,2]
[422302548,1778803838000,-176.3,0.00010637,2]
[422302560,1778803838000,-5162.54450618,0.00011099,2]
[422302579,1778803838000,-2187.77,0.00011753,2]
[422302591,1778803838000,-1842.17698081,0.00012579,2]
[422302587,1778803838000,-166.93,0.00012026,2]
[422302589,1778803838000,-500.0,0.00012219,2]
[422302582,1778803838000,-440.8,0.0001187,2]
[422302590,1778803838000,-287.57,0.00012329,2]
[422302585,1778803838000,-1842.17698081,0.00011999,2]
[422302588,1778803838000,-622.48449358,0.00012046,2]
[422302592,1778803838000,-5162.54450611,0.0001258,2]
[422302594,1778803838000,-1382.92832058,0.00012662,2]
[422302595,1778803838000,-823.0,0.00012747,2]
[422302596,1778803838000,-622.48449358,0.0001276,2]
[422302599,1778803838000,-500.0,0.0001315,2]
[422302598,1778803838000,-500.0,0.0001315,2]
[422302552,1778803838000,-190.01670168,0.0001074,2]
[422302600,1778803838000,-500.0,0.0001315,2]
[422302593,1778803838000,-3292.0,0.00012638,2]
[422302584,1778803838000,-2000.0,0.00011991,2]
[422302597,1778803838000,-440.8,0.00013057,2]
[422302586,1778803838000,-5162.54450611,0.00011999,2]
[422302561,1778803838000,-5162.54450611,0.00011099,2]
[422302555,1778803838000,-1382.92832058,0.000109,2]
[422302562,1778803838000,-5162.54450611,0.00011099,2]
[422302575,1778803838000,-587.0,0.00011588,2]
[422302554,1778803838000,-2000.0,0.00010792,2]
[422302569,1778803838000,-993.22,0.00011377,2]
[422302566,1778803838000,-1382.92832058,0.00011171,2]
[422302573,1778803838000,-2351.0,0.00011489,2]
[422302563,1778803838000,-1842.17698082,0.00011099,2]
[422302571,1778803838000,-5162.54450611,0.00011419,2]
[422302564,1778803838000,-1842.17698081,0.00011099,2]
[422302565,1778803838000,-1842.17698081,0.00011099,2]
[422302568,1778803838000,-622.48449358,0.00011333,2]
[422302567,1778803838000,-530.65,0.0001123,2]
[422302577,1778803838000,-11201.43720486,0.00011734,2]
[422302570,1778803838000,-1842.17698081,0.00011419,2]